fUSD/lending_fUSD_20240118
["ID","MTS","AMOUNT","RATE_DAILY","PERIOD"]
[312094313,1705615253042,-758.33044579,0.00022315,2]
[312094314,1705615253069,-248.66279264,0.00022315,2]
[312094315,1705615253094,-2945.18684852,0.00022315,2]
[312094316,1705615253120,-1708.71966275,0.00022315,2]
[312094317,1705615253146,-155.0,0.00022315,2]
[312094318,1705615253171,-4800.24,0.00022315,2]
[312094319,1705615253197,-558.63203499,0.00022316,2]
[312094320,1705615253223,-15234.78,0.00022317,2]
[312094321,1705615253251,-163.03627422,0.00022329,2]
[312094322,1705615265064,3195.13608794,0.00022185,2]
[312094323,1705615274592,200.0,0.00022029,2]
[312094324,1705615282690,632.75815,0.00022185,2]
[312094325,1705615300236,537.24,0.00020127,2]
[312094326,1705615345131,665.58,0.00022029,2]
[312094327,1705615361614,250.0,0.00022003,2]
[312094328,1705615393938,2000.0,0.00021985,2]
[312094329,1705615401699,271.2,0.00021985,2]
[312094342,1705615413158,250.0,0.00022005,2]
[312094343,1705615413255,281.68,0.00022316,2]
[312094344,1705615417628,201.59711885,0.00022204,2]
[312094346,1705615475685,598.76,0.00021943,2]
[312094348,1705615516641,163.98,0.00022124,2]
[312094361,1705615595019,176.3,0.00022,2]
[312094362,1705615609190,271.65456604,0.00022,2]
[312094364,1705615613388,157.75229804,0.00022291,2]
[312094365,1705615623507,4469.22,0.00021917,2]
[312094395,1705615678608,743.76,0.00021798,2]
[312094396,1705615728178,160.51,0.00021787,2]
[312094397,1705615728555,160.51,0.00021959,2]
[312094398,1705615728614,160.51,0.00022131,2]
[312094399,1705615729007,160.51,0.00022303,2]
[312094400,1705615740559,176.22,0.00021752,2]
[312094434,1705615807573,204.0,0.00021597,2]
[312094435,1705615809500,674.2,0.00021778,2]
[312094436,1705615817048,562.88,0.00019909,2]
[312094437,1705615817393,562.88,0.00022173,2]
[312094438,1705615827391,2000.0,0.00021808,2]
[312094439,1705615827665,250.0,0.00021918,2]
[312094467,1705615831713,-155.0,0.00022351,2]
[312094468,1705615831726,-157.75229803,0.00022352,2]
[312094469,1705615831738,-1332.37972538,0.00022399,2]
[312094471,1705615831751,-1397.68747687,0.00022399,2]
[312094473,1705615831764,-414.65839372,0.00022399,2]
[312094474,1705615831776,-2000.0,0.000224,2]
[312094476,1705615831787,-157.75229803,0.00022413,2]
[312094477,1705615831799,-157.33,0.00022449,2]
[312094479,1705615831810,-157.75229803,0.00022474,2]
[312094481,1705615831822,-160.51,0.00022475,2]
[312094482,1705615831833,-157.75229803,0.00022535,2]
[312094484,1705615831844,-176.3,0.00022548,2]
[312094485,1705615831855,-150.99,0.00022548,2]
[312094487,1705615831865,-94.90894946,0.00022548,2]
[312094488,1705615831878,-182.35105054,0.00022548,2]
[312094490,1705615831888,-164.56,0.00022561,2]
[312094492,1705615831898,-157.75229803,0.00022596,2]
[312094493,1705615831910,-743.76,0.00022605,2]
[312094495,1705615831920,-160.51,0.00022647,2]
[312094496,1705615831931,-157.75229803,0.00022656,2]
[312094498,1705615831941,-296.48230499,0.00022668,2]
[312094500,1705615831954,-300.40959501,0.00022668,2]
[312094501,1705615831964,-157.0,0.00022699,2]
[312094503,1705615831975,-150.0,0.00022699,2]
[312094504,1705615831985,-1000.0,0.000227,2]
[312094506,1705615831996,-1000.0,0.000227,2]
[312094508,1705615832006,-1000.0,0.000227,2]
[312094509,1705615832016,-1000.0,0.000227,2]
[312094510,1705615832027,-157.75229803,0.00022717,2]
[312094511,1705615832038,-674.2,0.00022757,2]
[312094513,1705615832048,-211.63392257,0.00022768,2]
[312094515,1705615832059,-2779.50067626,0.00022768,2]
[312094517,1705615832070,-529.15035393,0.00022768,2]
[312094520,1705615832081,-244.84553355,0.00022768,2]
[312094523,1705615832091,-318.58873855,0.00022768,2]
[312094526,1705615832101,-916.37419282,0.00022769,2]
[312094529,1705615832112,-157.75229803,0.00022778,2]
[312094532,1705615832122,-302.96537039,0.00022788,2]
[312094535,1705615832132,-898.7409673,0.00022805,2]
[312094538,1705615832143,-200.0,0.00022816,2]
[312094541,1705615832153,-800.0,0.00022816,2]
[312094544,1705615832166,-202.395292,0.00022816,2]
[312094547,1705615832176,-160.51,0.00022819,2]
[312094550,1705615832186,-181.0,0.00022824,2]
[312094552,1705615832196,-157.75229803,0.00022839,2]
[312094553,1705615832206,-2589.80602869,0.00022898,2]
[312094554,1705615832216,-1222.55133,0.00022899,2]
[312094555,1705615832225,-3309.60760292,0.000229,2]
[312094556,1705615832260,-958.19999987,0.000229,2]
[312094557,1705615832272,-1347.17510285,0.000229,2]
[312094558,1705615832283,-172.49151435,0.000229,2]
[312094559,1705615832293,-157.75229803,0.000229,2]
[312094560,1705615832302,-1000.0,0.000229,2]
[312094561,1705615832608,-20311.4289292,0.000229,6]
[312094562,1705615832618,-730.82,0.00022905,2]
[312094563,1705615832627,-164.56,0.00022925,2]
[312094564,1705615832638,-160.51,0.00022991,2]
[312094565,1705615832655,-372.9920642,0.00022994,2]
[312094566,1705615832664,-1809.9890041,0.00022994,2]
[312094567,1705615832674,-3139.1012123,0.00022994,2]
[312094568,1705615832683,-286.58393191,0.00022998,2]
[312094569,1705615832692,-10552.5422065,0.00022998,2]
[312094570,1705615832702,-1416.45270097,0.00022998,2]
[312094571,1705615832711,-355.34708259,0.00022998,2]
[312094572,1705615832721,-155.0,0.00022998,2]
[312094573,1705615832731,-176.01199507,0.00022998,2]
[312094574,1705615832741,-941.08515656,0.00022998,2]
[312094575,1705615832750,-1057019.71180784,0.00022999,2]
[312094576,1705615832760,-532.6857548,0.00022999,2]
[312094577,1705615832769,-1214.0,0.00022999,2]
[312094578,1705615832778,-1138989.99511445,0.00023,2]
[312094579,1705615832794,-1164.11847118,0.00023,2]
[312094580,1705615832806,-1017.93,0.00023,2]
[312094581,1705615832821,-1933.17930375,0.00023,2]
[312094582,1705615832832,-2197.2664254,0.00023,2]
[312094583,1705615832843,-501.74404035,0.00023,2]
[312094584,1705615832855,-4353.7,0.00023,2]
[312094585,1705615832866,-1025.78248683,0.00023,2]
[312094586,1705615832878,-1508.325507,0.00023,2]
[312094587,1705615832889,-316.617,0.00023,2]
[312094588,1705615832900,-1274.52843659,0.00023,2]
[312094589,1705615832912,-2182.65,0.00023,2]
[312094612,1705615837736,-717.4334546,0.00022548,2]
[312094613,1705615837752,-414.69,0.00022548,2]
[312094614,1705615837775,-2193.0965454,0.00022548,2]
[312094615,1705615837784,-898.74096728,0.00022853,2]
[312094616,1705615837793,-355.12383653,0.00022999,2]
[312094617,1705615837802,-1740674.23508079,0.00023,3]
[312094618,1705615837811,-799.33878564,0.00023,2]
[312094619,1705615837820,-1533954.57844249,0.00023,2]
[312094620,1705615837829,-236.41110306,0.00023,2]
[312094621,1705615837838,-2000.0,0.00023,2]
[312094622,1705615837847,-2540393.52977425,0.00023,2]
[312094623,1705615837859,-668.6549,0.00023,2]
[312094624,1705615837870,-402.97680969,0.00023,2]
[312094625,1705615837881,-623.31486525,0.00023,2]
[312094626,1705615837948,-26479.21730968,0.00023,2]
[312094627,1705615837959,-103906.36337415,0.00023,2]
[312094628,1705615837972,-6170.57082958,0.00023,2]
[312094629,1705615838295,-1024025.20562284,0.00023,2]
[312094632,1705615838307,-11903.87570275,0.00023,2]
[312094667,1705615840206,-898.74096728,0.000229,2]
[312094670,1705615840215,-93.02440206,0.00023,2]
[312094785,1705615844500,-3488.73007933,0.00023,2]
[312094791,1705615850736,-1869.03731725,0.00023,2]
[312094792,1705615850747,-658.38525432,0.00023,2]
[312094793,1705615850758,-280.414709,0.00023,2]
[312094794,1705615850770,-555.45650775,0.00023,2]
[312094795,1705615850803,-270.95427204,0.00023,2]
[312094796,1705615850815,-1444.07043046,0.00023,2]
[312094797,1705615850906,-4371.5906833,0.00023,2]
[312094798,1705615850918,-393.2582525,0.00023,2]
[312094799,1705615851310,-236.74922435,0.00022999,2]
[312094800,1705615851320,-127.5007754,0.00022999,2]
[312094801,1705615851332,-410.5399995,0.00022999,2]
[312094802,1705615851344,-554.9592251,0.00022999,2]
[312094803,1705615851354,-7988.63456271,0.00023,2]
[312094804,1705615851366,-389.167842,0.00023,2]
[312094805,1705615851386,-4884.48,0.00023,2]
[312094806,1705615851398,-2080.28010755,0.00023,2]
[312094807,1705615851409,-678.64869671,0.00023,2]
[312094808,1705615853416,-318.71536209,0.00022998,2]
[312094809,1705615853425,-10706.01952341,0.00022999,2]
[312094810,1705615853437,-283.25403876,0.00022999,2]
[312094811,1705615853449,-8259.43395374,0.00022999,2]
[312094812,1705615853461,-7567.08157827,0.00022999,2]
[312094813,1705615853473,-1800.0,0.00022999,2]
[312094814,1705615853516,-11024.20335073,0.00022999,2]
[312094815,1705615853530,-1226.36147996,0.00022999,2]
[312094816,1705615853542,-13183.42153153,0.00022999,2]
[312094817,1705615853553,-74576.00149539,0.00022999,2]
[312094818,1705615853565,-1775.56267754,0.00022999,2]
[312094819,1705615853576,-2069.1801,0.00022999,2]
[312094820,1705615853610,-1581.2678062,0.00022999,2]
[312094821,1705615854304,1000.0,0.00022,2]
[312094822,1705615869106,236.41110306,0.00021918,2]
[312094823,1705615880275,250.0,0.000223,2]
[312094824,1705615906006,520.99,0.00022276,2]
[312094825,1705615976068,159.21,0.00022337,2]
[312094826,1705616003232,500.0,0.00022102,2]
[312094827,1705616022841,258.33493005,0.00022,2]
[312094828,1705616025283,150.0,0.00022,2]
[312094829,1705616027706,150.0,0.00022,2]
[312094830,1705616137193,506.33180245,0.00021,2]
[312094831,1705616138788,519.99,0.0002193,2]
[312094832,1705616168934,150.0,0.00022,2]
[312094833,1705616203804,164.06,0.00021864,2]
[312094834,1705616215890,12238.82,0.00021993,2]
[312094835,1705616222347,176.3,0.00021766,2]
[312094836,1705616223574,176.3,0.00022314,2]
[312094837,1705616227621,472.11,0.00021809,2]
[312094838,1705616258864,1559.53,0.00021794,2]
[312094839,1705616268835,584.3,0.00021768,2]
[312094840,1705616269995,250.0,0.00021918,2]
[312094841,1705616297159,166.05,0.00021864,2]
[312094842,1705616302734,271.2,0.00021732,2]
[312094843,1705616305815,153.36,0.00021945,2]
[312094844,1705616329665,506.59,0.0001982,2]
[312094845,1705616330177,506.59,0.00022084,2]
[312094846,1705616435507,583.2,0.00021715,2]
[312094847,1705616455469,48300.0,0.0002,30]
[312094848,1705616496607,159.21,0.00021869,2]
[312094849,1705616524088,204.0,0.00021518,2]
[312094850,1705616657169,170.59,0.00021724,2]
[312094851,1705616657375,170.59,0.00022267,2]
[312094852,1705616677161,415.99,0.00021644,2]
[312094853,1705616681890,550.0,0.00022,3]
[312094854,1705616695701,300.0,0.000223,8]
[312094855,1705616710940,250.0,0.00021918,2]
[312094856,1705616762861,455.93,0.00019643,2]
[312094857,1705616763219,455.93,0.00021907,2]
[312094858,1705616773021,603.44,0.00021561,2]
[312094859,1705616840994,176.3,0.00021537,2]
[312094860,1705616842012,176.3,0.00022085,2]
[312094861,1705616845709,400.0,0.000223,8]
[312094862,1705616849461,500.0,0.00021766,2]
[312094900,1705616892577,533.44,0.000215,2]
[312094901,1705616919727,11169.20824025,0.00022312,2]
[312094923,1705617031837,-159.42,0.00021732,2]
[312094924,1705617031847,-159.21,0.00021778,2]
[312094925,1705617031856,-2114.40399918,0.00022308,2]
[312094926,1705617031897,-550.0,0.00022308,2]
[312094927,1705617031909,-480.32159679,0.00022308,2]
[312094928,1705617031918,-1768.17650467,0.00022309,2]
[312094929,1705617031927,-150.0,0.00022311,2]
[312094930,1705617031936,-150.0,0.00022311,2]
[312094931,1705617031945,-13922.79175975,0.00022312,2]
[312094932,1705617031954,-1863.62905753,0.000224,2]
[312094933,1705617031964,-900.0,0.000224,8]
[312094934,1705617031973,-157.63301952,0.00022407,2]
[312094935,1705617031983,-164.06,0.00022411,2]
[312094936,1705617031993,-205.9113,0.00022437,2]
[312094937,1705617032002,-1000.0,0.00022437,2]
[312094938,1705617032011,-5332.66987111,0.00022437,2]
[312094939,1705617032023,-12391.5,0.00022437,2]
[312094940,1705617032042,-594.78445375,0.00022437,2]
[312094941,1705617032068,-3129.44071183,0.00022437,2]
[312094942,1705617032079,-421.87460659,0.00022437,2]
[312094953,1705617032393,-2505.07671998,0.00022437,2]
[312094954,1705617032408,-2701.47886466,0.00022437,2]
[312094955,1705617032421,-15448.19747208,0.00022437,2]
[312094956,1705617032431,-184.95359999,0.00022438,2]
[312094957,1705617032443,-168.12312929,0.00022438,2]
[312094958,1705617032454,-2193.1,0.00022438,2]
[312094959,1705617032464,-294.5248,0.00022438,2]
[312094960,1705617032474,-204.0,0.00022442,2]
[312094961,1705617032483,-204.0,0.00022442,2]
[312094962,1705617032493,-415.99,0.00022445,2]
[312094963,1705617032502,-153.36,0.00022461,2]
[312094964,1705617032512,-184.95359995,0.00022495,2]
[312094965,1705617032522,-1400.0,0.000225,8]
[312094966,1705617032532,-719.8,0.00022507,2]
[312094967,1705617032541,-1198.17062646,0.00022516,2]
[312094968,1705617032551,-718.64,0.00022529,2]
[312094969,1705617032561,-157.63301951,0.0002253,2]
[312094970,1705617032571,-12298.83057596,0.00022535,2]
[312094971,1705617032580,-222.49826248,0.00022538,4]
[312094972,1705617032590,-22328.2888723,0.00022538,2]
[312094973,1705617032599,-603.44,0.00022539,2]
[312094974,1705617032609,-150.0,0.00022548,2]
[312094975,1705617032619,-184.95359995,0.00022553,2]
[312094976,1705617032629,-1079.32007388,0.000226,3]
[312094977,1705617032638,-1900.0,0.000226,8]
[312094978,1705617032658,-184.95359995,0.0002261,2]
[312094979,1705617032668,-176.3,0.00022633,2]
[312094980,1705617032678,-1139.78009006,0.00022637,2]
[312094981,1705617032688,-157.63301951,0.00022654,2]
[312094982,1705617032698,-1139.78009,0.00022655,2]
[312094983,1705617032708,-2961.63212871,0.00022666,3]
[312094984,1705617032718,-5000.0,0.00022666,2]
[312094985,1705617032727,-1000.0,0.00022666,2]
[312094986,1705617032737,-8359.8173,0.00022666,2]
[312094987,1705617032747,-154.5966,0.00022666,2]
[312094988,1705617032757,-155.21565838,0.00022667,2]
[312094989,1705617032767,-5786.46514722,0.00022667,2]
[312094990,1705617032777,-184.95359995,0.00022667,2]
[312094991,1705617032787,-1402.39382369,0.00022667,2]
[312094992,1705617032797,-366.25585409,0.00022667,2]
[312094993,1705617032807,-200.83137629,0.00022667,2]
[312094994,1705617032817,-571.6608011,0.00022667,6]
[312094995,1705617032826,-181.78538729,0.00022667,4]
[312094996,1705617032837,-1188.44219969,0.00022667,2]
[312094997,1705617032846,-6285.1976,0.00022668,2]
[312094998,1705617032856,-500.0,0.00022668,2]
[312094999,1705617032866,-1000.0,0.00022668,2]
[312095000,1705617032876,-8680.50670312,0.00022668,2]
[312095003,1705617037887,-508.54054955,0.00022668,2]
[312095004,1705617037900,-553.53771422,0.00022668,2]
[312095005,1705617037912,-2301.47842678,0.00022668,2]
[312095006,1705617037924,-3853.74540633,0.00022668,2]
[312095007,1705617037934,-39832.7129,0.00022669,2]
[312095008,1705617037943,-1139.78009,0.00022673,2]
[312095009,1705617037953,-1139.78009,0.00022691,2]
[312095010,1705617037963,-2400.0,0.000227,8]
[312095011,1705617037973,-1139.78009,0.00022709,2]
[312095012,1705617037982,-150.0,0.00022726,2]
[312095013,1705617037991,-1500.0,0.00022729,2]
[312095014,1705617038001,-1057019.71180784,0.00022736,2]
[312095015,1705617038010,-150.0,0.00022737,2]
[312095016,1705617038021,-150.0,0.00022738,2]
[312095017,1705617038030,-150.0,0.00022738,2]
[312095018,1705617038040,-262.19373604,0.00022739,2]
[312095019,1705617038050,-150.0,0.00022741,2]
[312095020,1705617038059,-1500.0,0.00022744,2]
[312095021,1705617038070,-150.0,0.00022745,2]
[312095022,1705617038079,-150.0,0.00022746,2]
[312095023,1705617038089,-150.0,0.00022748,2]
[312095024,1705617038099,-150.0,0.00022753,2]
[312095025,1705617038111,-150.0,0.00022758,2]
[312095026,1705617038121,-150.0,0.00022758,2]
[312095027,1705617038131,-500.0,0.00022765,2]
[312095028,1705617038140,-156.0,0.00022766,2]
[312095029,1705617038149,-163.69448281,0.00022767,2]
[312095030,1705617038160,-210.4285035,0.00022767,2]
[312095031,1705617038169,-269432.07282948,0.00022767,2]
[312095032,1705617038179,-150.0,0.00022767,2]
[312095033,1705617038188,-1500.0,0.00022768,2]
[312095034,1705617038198,-150.0,0.00022769,2]
[312095035,1705617038207,-150.0,0.0002277,2]
[312095036,1705617038217,-150.0,0.0002277,2]
[312095037,1705617038226,-300.0,0.0002277,2]
[312095038,1705617038236,-150.0,0.00022775,2]
[312095039,1705617038246,-157.63301951,0.00022777,2]
[312095040,1705617038255,-150.0,0.00022777,2]
[312095041,1705617038266,-1402.39382369,0.00022784,2]
[312095042,1705617038275,-366.25585408,0.00022784,2]
[312095043,1705617038285,-200.83137627,0.00022784,2]
[312095044,1705617038294,-1188.44219968,0.00022784,2]
[312095046,1705617038303,-150.0,0.00022794,2]
[312095048,1705617038313,-150.0,0.00022797,2]
[312095050,1705617038322,-1500.0,0.00022798,2]
[312095052,1705617038331,-176.63801376,0.00022799,2]
[312095054,1705617038342,-744.05308228,0.00022799,2]
[312095056,1705617038352,-400.0,0.000228,8]
[312095059,1705617038363,-150.0,0.00022802,2]
[312095061,1705617038372,-170.59,0.0002281,2]
[312095063,1705617038382,-150.0,0.00022813,2]
[312095065,1705617038391,-150.0,0.00022815,2]
[312095067,1705617038400,-200.0,0.00022816,2]
[312095068,1705617038409,-800.0,0.00022816,2]
[312095069,1705617038419,-150.0,0.00022816,2]
[312095070,1705617038428,-150.0,0.00022816,2]
[312095071,1705617038438,-150.0,0.00022819,2]
[312095072,1705617038447,-150.0,0.00022837,2]
[312095073,1705617038457,-150.0,0.00022842,2]
[312095074,1705617038466,-150.0,0.00022862,2]
[312095075,1705617038476,-150.0,0.00022869,2]
[312095076,1705617038486,-224.05,0.0002287,2]
[312095077,1705617038495,-150.0,0.00022875,2]
[312095078,1705617038504,-150.0,0.00022876,2]
[312095079,1705617038514,-150.0,0.00022877,2]
[312095080,1705617038524,-3065.28893654,0.0002288,2]
[312095081,1705617038534,-150.0,0.00022885,2]
[312095082,1705617038543,-245000.0,0.00022898,2]
[312095083,1705617038553,-11895.6308,0.00022899,2]
[312095084,1705617038562,-1000.0,0.000229,2]
[312095085,1705617038571,-55555.0,0.000229,2]
[312095086,1705617038581,-1101.0,0.000229,2]
[312095087,1705617038590,-157.63301951,0.000229,2]
[312095088,1705617038600,-164.35368918,0.000229,2]
[312095089,1705617038610,-1402.39382369,0.000229,2]
[312095090,1705617038619,-366.25585408,0.000229,2]
[312095091,1705617038629,-200.83137627,0.000229,2]
[312095092,1705617038639,-1188.44219968,0.000229,2]
[312095093,1705617038649,-400.0,0.000229,8]
[312095094,1705617038659,-150.0,0.00022907,2]
[312095095,1705617038669,-150.0,0.00022908,2]
[312095096,1705617038679,-159.21,0.00022913,2]
[312095097,1705617038688,-150.0,0.00022914,2]
[312095098,1705617038697,-150.0,0.00022927,2]
[312095099,1705617038707,-150.0,0.00022931,2]
[312095100,1705617038717,-150.0,0.00022931,2]
[312095101,1705617038726,-150.0,0.00022931,2]
[312095102,1705617038736,-1500.0,0.00022936,2]
[312095103,1705617038745,-150.0,0.00022936,2]
[312095104,1705617038755,-150.0,0.00022938,2]
[312095105,1705617038765,-150.0,0.00022941,2]
[312095106,1705617038775,-150.0,0.00022953,2]
[312095107,1705617038784,-150.0,0.00022954,2]
[312095108,1705617038794,-164.06,0.00022957,2]
[312095109,1705617038803,-150.0,0.00022958,2]
[312095110,1705617038812,-150.0,0.0002296,2]
[312095111,1705617038821,-150.0,0.00022961,2]
[312095112,1705617038831,-300.0,0.00022962,2]
[312095113,1705617038840,-300.0,0.00022972,2]
[312095114,1705617038849,-150.0,0.00022973,2]
[312095115,1705617038858,-150.0,0.00022975,2]
[312095116,1705617038867,-153.36,0.00022977,2]
[312095118,1705617038877,-150.0,0.00022977,2]
[312095120,1705617038888,-150.0,0.00022977,2]
[312095122,1705617038898,-3959.03779741,0.00022983,3]
[312095124,1705617038907,-1500.0,0.00022983,2]
[312095126,1705617038916,-150.0,0.00022988,2]
[312095128,1705617038925,-150.0,0.00022993,2]
[312095130,1705617038934,-158.25793825,0.00022995,2]
[312095132,1705617038944,-7763.6940125,0.00022996,2]
[312095134,1705617038953,-43619.1408881,0.00022996,2]
[312095136,1705617038962,-150.0,0.00022996,2]
[312095137,1705617038973,-310.8267202,0.00022996,2]
[312095140,1705617038984,-506.53059834,0.00022997,2]
[312095142,1705617038994,-7781.2432034,0.00022997,2]
[312095144,1705617039003,-158.7458962,0.00022997,2]
[312095146,1705617039012,-176.06999417,0.00022997,2]
[312095148,1705617039021,-1255.31698243,0.00022997,2]
[312095150,1705617039031,-425.18667222,0.00022997,2]
[312095152,1705617039041,-3004.11480193,0.00022998,2]
[312095154,1705617039050,-239.39981006,0.00022998,2]
[312095156,1705617039060,-1708.71966275,0.00022998,2]
[312095158,1705617039070,-15068.04121555,0.00022998,2]
[312095160,1705617039079,-3526.11573024,0.00022998,2]
[312095162,1705617039088,-238.62522495,0.00022998,2]
[312095164,1705617039098,-2237.5606869,0.00022998,2]
[312095166,1705617039107,-272.40603942,0.00022998,2]
[312095168,1705617039116,-6556.56438206,0.00022998,2]
[312095170,1705617039126,-986.3577,0.00022998,2]
[312095172,1705617039135,-155.0,0.00022999,2]
[312095174,1705617039145,-1374.94679743,0.00022999,2]
[312095176,1705617039153,-2679284.1448567,0.00023,3]
[312095178,1705617039162,-3653942.69972474,0.00023,2]
[312095181,1705617039176,-600.1668679,0.00023,2]
[312095183,1705617039187,-5707.10907528,0.00023,2]
[312095186,1705617039204,-1798.10956692,0.00023,2]
[312095188,1705617039215,-674.975,0.00023,2]
[312095191,1705617039252,-361.67952594,0.00023,2]
[312095192,1705617039282,-2212.0210525,0.00023,2]
[312095193,1705617039293,-1711.8021486,0.00023,2]
[312095194,1705617039304,-31833.13417534,0.00023,2]
[312095196,1705617039316,-2809.7376293,0.00023,2]
[312095198,1705617039327,-758.36707319,0.00023,2]
[312095211,1705617039442,-4690.6,0.00023,2]
[312095547,1705617041827,-15676.81570379,0.00022437,2]
[312095552,1705617041853,-310.08111749,0.00022437,2]
[312095555,1705617041864,-1254.14327998,0.00022437,2]
[312095560,1705617041888,-1052.875,0.00022437,2]
[312095775,1705617043131,-651.06340159,0.00022437,2]
[312095776,1705617043195,-396.59870958,0.00022437,2]
[312095782,1705617046112,-277.2879597,0.00022437,2]
[312095783,1705617046145,-261.60174887,0.00022437,2]
[312095784,1705617046311,-253.7535,0.00022437,2]
[312095785,1705617214813,520.23,0.00019943,2]
[312095786,1705617216589,2520.09,0.00021644,2]
[312095787,1705617244358,204.0,0.00021442,2]
[312095788,1705617289977,200.0,0.00021477,2]
[312095789,1705617350925,326.73,0.00021373,2]
[312095790,1705617381813,273.52,0.00021334,2]
[312095791,1705617387597,174.03,0.00021556,2]
[312095792,1705617403099,4337.15,0.00021347,2]
[312095793,1705617417539,3064.41,0.00021353,2]
[312095794,1705617440964,157.79,0.00021514,2]
[312095795,1705617460918,176.3,0.00021312,2]
[312095800,1705617529227,1000.0,0.00021298,2]
[312095801,1705617568450,155.0,0.00021647,2]
[312095802,1705617571236,157.23,0.0002101,2]
[312095803,1705617571619,157.23,0.00021207,2]
[312095804,1705617571868,157.23,0.00021404,2]
[312095805,1705617572063,157.23,0.00021601,2]
[312095806,1705617577870,161.83,0.000216,7]
[312095807,1705617577897,238.17,0.000216,7]
[312095808,1705617591291,286.95,0.00021061,2]
[312095809,1705617599947,5152.45530553,0.00020732,7]
[312095810,1705617604108,150.0,0.000216,2]
[312095811,1705617604177,150.0,0.000216,2]
[312095812,1705617604258,150.0,0.000216,2]
[312095813,1705617604441,150.0,0.000216,2]
[312095814,1705617604681,150.0,0.000216,2]
[312095815,1705617604876,293.36135867,0.000216,2]
[312095816,1705617647728,245.5,0.00020847,2]
[312095817,1705617653004,494.21,0.00018937,2]
[312095818,1705617653331,494.21,0.000212,2]
[312095819,1705617661642,166.45,0.00020847,2]
[312095820,1705617689143,162.44,0.00020839,10]
[312095821,1705617708333,219.43,0.0002083,2]
[312095822,1705617758999,6596.7159,0.00021587,2]
[312095823,1705617778321,49964.6972,0.00021587,2]
[312095824,1705617796408,251.1615,0.00021587,2]
[312095825,1705617796639,302.6412,0.00021587,2]
[312095826,1705617801939,705.09,0.00020817,2]
[312095827,1705617818122,206041.73553002,0.00021003,2]
[312095828,1705617818148,418358.26446998,0.00021003,2]
[312095829,1705617827639,205.9113,0.0002158,2]
[312095830,1705617855358,160.24,0.00020989,2]
[312095831,1705617907459,4936.8178,0.00021587,2]
[312095832,1705617919795,15918.7829,0.00021587,2]
[312095833,1705617919835,2751.35599215,0.00020989,2]
[312095834,1705617951317,718.0381,0.0002158,2]
[312095835,1705617952689,2390.39323209,0.00020884,2]
[312095836,1705617956608,373.92729037,0.00021527,2]
[312095837,1705617963637,200.0,0.00020675,2]
[312095838,1705617964396,204.0,0.00021471,2]
[312095839,1705617966316,155.59197994,0.00021525,2]
[312095840,1705617979484,159.66,0.00020848,2]
[312095841,1705617979806,159.66,0.00020926,2]
[312095842,1705617980214,159.66,0.00021003,2]
[312095843,1705617980591,159.66,0.00021081,2]
[312095844,1705617980833,159.66,0.00021159,2]
[312095845,1705617981248,159.66,0.00021236,2]
[312095846,1705617981457,159.66,0.00021314,2]
[312095847,1705617981680,159.66,0.00021391,2]
[312095848,1705617982101,159.66,0.00021469,2]
[312095849,1705617982503,159.66,0.00021547,2]
[312095850,1705617990529,89358.1663,0.00021537,2]
[312095851,1705617999210,458.14179625,0.00021525,2]